fUSD/lending_fUSD_20251204
["ID","MTS","AMOUNT","RATE_DAILY","PERIOD"]
[396213610,1764814246176,-4945.30306302,0.000319,2]
[396213611,1764814246186,-180.97491933,0.000319,2]
[396213612,1764814246200,-296.98863985,0.000319,2]
[396213613,1764814246213,-307.33468728,0.000319,2]
[396213614,1764814246223,-206.70401398,0.00031924,2]
[396213615,1764814246234,-1526.08475763,0.0003199,7]
[396213616,1764814246244,-153.69360809,0.00031997,7]
[396213617,1764814246253,-656158.68334149,0.00032,2]
[396213618,1764814246414,-1018.86548525,0.00032,2]
[396213619,1764814246592,-192.101628,0.00019178,2]
[396213620,1764814246603,-210.689643,0.00019178,2]
[396213621,1764814246613,-22415.04174284,0.00032,2]
[396213622,1764814246627,-1494.48580071,0.00032,2]
[396213623,1764814246638,-913.36831224,0.00032,2]
[396213624,1764814246651,-11925.68557438,0.00032,2]
[396213625,1764814246663,-1410.45779818,0.00032,2]
[396213626,1764814246675,-2224.83112425,0.00032,2]
[396213627,1764814246686,-384.996,0.00032,2]
[396213628,1764814246788,-213.22653764,0.0001999,2]
[396213629,1764814246797,-151.0,0.0002,2]
[396213630,1764814246807,-147.56944157,0.00020399,2]
[396213631,1764814246836,-373.56001719,0.00020399,2]
[396213632,1764814246845,-67.24698281,0.00032,2]
[396213640,1764815132930,173.18068756,0.0002,120]
[396213641,1764815142656,157.55109731,0.0002,30]
[396213642,1764815171782,-1000.0,0.00015352,2]
[396213643,1764815171807,-195.0,0.00015352,2]
[396213644,1764815171832,-278.0,0.00015352,2]
[396213645,1764815171858,-940.488,0.00015483,2]
[396213646,1764815171882,-222.18387138,0.00015684,2]
[396213647,1764815171905,-842.1234,0.00015699,2]
[396213648,1764815171930,-936.0,0.00015699,2]
[396213649,1764815171953,-225.46730223,0.000157,2]
[396213650,1764815171977,-5204.87234517,0.000157,2]
[396213651,1764815172000,-342.22298508,0.000157,2]
[396213652,1764815172024,-439.46162047,0.000157,2]
[396213653,1764815172048,-5481.74441512,0.000157,2]
[396213654,1764815172072,-300.0,0.00015797,2]
[396213655,1764815172100,-500.0,0.00015798,2]
[396213656,1764815172128,-500.0,0.00015798,2]
[396213657,1764815172156,-500.0,0.00015798,2]
[396213658,1764815172183,-500.0,0.00015798,2]
[396213659,1764815172210,-500.0,0.00015798,2]
[396213660,1764815172237,-500.0,0.00015798,2]
[396213661,1764815172263,-422.00744746,0.00015798,2]
[396213662,1764815172290,-500.0,0.00015798,2]
[396213663,1764815172323,-500.0,0.00015798,2]
[396213664,1764815172351,-500.0,0.00015798,2]
[396213665,1764815172379,-500.0,0.00015798,2]
[396213666,1764815172406,-500.0,0.00015798,2]
[396213667,1764815172433,-500.0,0.00015798,2]
[396213668,1764815172460,-500.0,0.00015798,2]
[396213669,1764815172488,-500.0,0.00015798,2]
[396213670,1764815172516,-500.0,0.00015798,2]
[396213671,1764815172543,-500.0,0.00015798,2]
[396213672,1764815172572,-564.71913695,0.00015798,2]
[396213673,1764815172599,-500.0,0.00015798,2]
[396213674,1764815172626,-500.0,0.00015798,2]
[396213675,1764815172657,-500.0,0.00015798,2]
[396213676,1764815172685,-500.0,0.00015798,2]
[396213677,1764815172713,-500.0,0.00015798,2]
[396213678,1764815172737,-200.59637683,0.00015798,2]
[396213679,1764815172761,-500.0,0.00015798,2]
[396213680,1764815172785,-164.74589209,0.00015798,2]
[396213681,1764815172809,-284.89109661,0.00015798,2]
[396213682,1764815172833,-1396.64,0.00015798,2]
[396213683,1764815172857,-500.0,0.00015798,2]
[396213684,1764815172880,-525.47058805,0.00015798,2]
[396213685,1764815172903,-104772.63,0.00015798,2]
[396213686,1764815172926,-500.0,0.00015798,2]
[396213687,1764815172949,-453.07205437,0.00015798,2]
[396213688,1764815172972,-9999.99,0.00015798,2]
[396213689,1764815172995,-4088.16,0.00015798,2]
[396213690,1764815173017,-150.99,0.00015798,2]
[396213691,1764815173045,-760000.0,0.00015799,2]
[396213692,1764815173068,-1000.0,0.000158,2]
[396213693,1764815173093,-500.0,0.00015873,2]
[396213694,1764815173130,-500.0,0.00015873,2]
[396213695,1764815173154,-694.83088719,0.00016,2]
[396213696,1764815173179,-736.73495386,0.00016,2]
[396213697,1764815173203,-241780.93384793,0.00016,2]
[396213698,1764815173228,-1396.64,0.00016072,2]
[396213699,1764815173252,-1396.64,0.00016346,2]
[396213700,1764815173275,-500.0,0.00016421,2]
[396213701,1764815173299,-319.11487979,0.00016421,2]
[396213702,1764815173324,-5680.32,0.00016438,2]
[396213703,1764815173350,-1396.64,0.0001662,2]
[396213704,1764815173374,-195.0,0.00016887,2]
[396213705,1764815173398,-1396.64,0.00016894,2]
[396213706,1764815173423,-208.0,0.00016918,2]
[396213707,1764815173448,-500.0,0.00016973,2]
[396213708,1764815173474,-500.0,0.00016973,2]
[396213709,1764815173498,-500.0,0.00016973,2]
[396213710,1764815173523,-500.0,0.00016973,2]
[396213711,1764815173550,-500.0,0.00016973,2]
[396213712,1764815173766,-300.0,0.00016999,2]
[396213713,1764815173793,-328067.02889942,0.00017,2]
[396213714,1764815174655,-238.02584407,0.00013699,2]
[396213716,1764815196285,548.0,0.00025,120]
[396213717,1764815227612,354.03774278,0.0002301,120]
[396213721,1764815415803,-298.76415593,0.00013699,2]
[396213722,1764815415824,-1.25059823,0.00013699,2]
[396213733,1764815432151,-261.74940177,0.00013699,2]
[396213734,1764815432162,-195.0,0.00015068,2]
[396213735,1764815432171,-8428.77985089,0.00015599,2]
[396213736,1764815432182,-384.52891792,0.00015599,2]
[396213737,1764815432192,-500.0,0.00015697,2]
[396213738,1764815432203,-500.0,0.00015697,2]
[396213739,1764815432213,-276.30295383,0.00015697,2]
[396213741,1764815432223,-235417.62763438,0.00015698,2]
[396213743,1764815432238,-10642.63956924,0.00015698,2]
[396213745,1764815432255,-462.11065713,0.00015698,2]
[396213747,1764815432273,-2477.70303656,0.00015698,2]
[396213749,1764815432292,-3498.68838393,0.00015698,2]
[396213761,1764815438093,-100014.48533909,0.00015698,2]
[396213762,1764815438149,-4557.24987909,0.00015698,2]
[396213763,1764815438203,-2452.18674416,0.00015698,2]
[396213764,1764815438261,-400477.30875642,0.00015698,2]
[396213765,1764815438271,-1000.0,0.00015699,2]
[396213766,1764815438281,-8428.77985082,0.00015744,2]
[396213767,1764815438291,-233.92629055,0.00015798,2]
[396213768,1764815438300,-500.0,0.00015798,2]
[396213769,1764815438310,-500.0,0.00015798,2]
[396213770,1764815438319,-501.84138354,0.00015798,2]
[396213771,1764815438329,-2224.10335219,0.00015807,2]
[396213772,1764815438338,-500.0,0.00015872,2]
[396213773,1764815438348,-160.37135465,0.00015872,2]
[396213774,1764815438358,-226.38733956,0.00015872,2]
[396213775,1764815438367,-164.74589209,0.00015872,2]
[396213776,1764815438377,-500.0,0.00015873,2]
[396213777,1764815438387,-8428.77985082,0.00015888,2]
[396213778,1764815438396,-5979.19420013,0.00016,4]
[396213779,1764815438408,-1769.23766179,0.00016,4]
[396213780,1764815438420,-1850.9311271,0.00016,4]
[396213781,1764815438433,-780.00000001,0.00016,4]
[396213782,1764815438445,-292.696336,0.00016,4]
[396213783,1764815438459,-46960.44602875,0.00016,4]
[396213784,1764815438472,-13565.37767824,0.00016,4]
[396213785,1764815438486,-6407.3083565,0.00016,4]
[396213789,1764815440053,-333586.0638972,0.00016,4]
[396213790,1764815440062,-8428.77985082,0.00016033,2]
[396213791,1764815440071,-8428.77985082,0.00016177,2]
[396213792,1764815440081,-8428.77985082,0.00016322,2]
[396213793,1764815440090,-166.66,0.00016451,2]
[396213794,1764815440099,-8428.77985082,0.00016466,2]
[396213795,1764815440109,-8428.77985082,0.00016611,2]
[396213796,1764815440118,-8428.77985082,0.00016755,2]
[396213797,1764815440128,-228.14865672,0.000168,2]
[396213798,1764815440137,-228.14865671,0.0001685,2]
[396213799,1764815440146,-228.14865671,0.000169,2]
[396213800,1764815440155,-180.97491933,0.000169,2]
[396213801,1764815440165,-8428.77985082,0.000169,2]
[396213802,1764815440174,-296.9886399,0.000169,2]
[396213803,1764815440184,-196.06245681,0.000169,2]
[396213804,1764815440193,-307.33468728,0.000169,2]
[396213805,1764815440206,-296.98863985,0.00016936,2]
[396213806,1764815440215,-296.98863985,0.00016972,2]
[396213807,1764815440224,-500.0,0.00016973,2]
[396213808,1764815440233,-500.0,0.00016973,2]
[396213809,1764815440242,-285.16846141,0.00016973,2]
[396213810,1764815440251,-649.32363297,0.00016973,2]
[396213811,1764815440260,-500.0,0.00016973,2]
[396213812,1764815440269,-162.88219363,0.0001698,2]
[396213813,1764815440278,-333.85051752,0.0001698,2]
[396213814,1764815440288,-166.66,0.00016994,2]
[396213815,1764815440297,-3300010.07113109,0.00017,2]
[396213816,1764815440312,-287.68,0.00017,2]
[396213817,1764815440373,-17620.67643698,0.00017,2]
[396213832,1764815445772,-500.0,0.00015697,2]
[396213833,1764815445781,-251.16500039,0.00015697,2]
[396213834,1764815445791,-234256.0013482,0.00017,2]
[396213835,1764815446214,-341236.82222039,0.00017,2]
[396213836,1764815446224,-256507.43926498,0.00017,2]
[396213837,1764815446257,-288.91482964,0.00017,2]
[396213866,1764815515253,188.79853959,0.00022,30]
[396213879,1764816394604,160.51,8.257e-05,2]
[396213880,1764816394812,160.51,0.00011009,2]
[396213886,1764816632114,-160.51,0.00013761,2]
[396213887,1764816632124,-309.19668379,0.00013761,2]
[396213888,1764816632133,-263.0,0.00013761,2]
[396213889,1764816632143,-300.0,0.00015137,2]
[396213890,1764816632152,-306.44267444,0.00015697,2]
[396213892,1764816632166,-216.64129259,0.00015697,2]
[396213894,1764816632176,-355.15846756,0.00015697,2]
[396213896,1764816632187,-144.84153244,0.00015697,2]
[396213897,1764816632197,-160.51,0.00016513,2]
[396213898,1764816632207,-480.06109419,0.00016545,2]
[396213899,1764816632216,-166.66,0.00016704,2]
[396213900,1764816632226,-336.46280318,0.00016801,2]
[396213901,1764816632236,-842.8779851,0.00016873,2]
[396213902,1764816632245,-1000.0,0.000169,2]
[396213903,1764816632255,-752.39,0.000169,2]
[396213904,1764816632265,-4186.91041019,0.000169,2]
[396213905,1764816632277,-271.91129923,0.000169,2]
[396213906,1764816632287,-500.00871216,0.000169,2]
[396213907,1764816632299,-672.80486097,0.000169,2]
[396213908,1764816632328,-504.83378329,0.000169,2]
[396213909,1764816632339,-1326.4511873,0.000169,2]
[396213928,1764816638220,-2537.07974686,0.000169,2]
[396213929,1764816638230,-500.0,0.000169,2]
[396213930,1764816638239,-180.97491933,0.000169,2]
[396213931,1764816638249,-389.49227043,0.000169,2]
[396213932,1764816638259,-228.14865671,0.000169,2]
[396213933,1764816638270,-166.0,0.000169,2]
[396213934,1764816638279,-162.88219363,0.000169,2]
[396213935,1764816638289,-296.9886399,0.000169,2]
[396213936,1764816638299,-166.0,0.000169,2]
[396213937,1764816638308,-640.91517641,0.000169,2]
[396213938,1764816638317,-279.82109422,0.000169,2]
[396213939,1764816638327,-8325.97166471,0.00016901,2]
[396213940,1764816638338,-821.0,0.00016901,2]
[396213949,1764816640209,-5406.50649121,0.00016801,2]
[396213950,1764816640419,-4355.85,0.00016801,2]
[396213951,1764816640503,-154495.69680879,0.00016801,2]
[396213952,1764816640513,-344594.76694139,0.00016901,2]
[396213953,1764816640524,-3753.4348574,0.00016901,2]
[396213954,1764816640534,-164.71510757,0.00016973,2]
[396213955,1764816640544,-500.0,0.00016973,2]
[396213956,1764816640555,-500.0,0.00016973,2]
[396213957,1764816640564,-500.0,0.00016973,2]
[396213958,1764816640575,-500.0,0.00016973,2]
[396213959,1764816640584,-500.0,0.00016973,2]
[396213960,1764816640594,-500.0,0.00016973,2]
[396213961,1764816640603,-285.16846141,0.00016973,2]
[396213962,1764816640613,-649.32363297,0.00016973,2]
[396213963,1764816640623,-500.0,0.00016973,2]
[396213964,1764816640632,-941.67,0.00016973,2]
[396213966,1764816640642,-500.0,0.0001699,2]
[396213968,1764816640651,-500.0,0.0001699,2]
[396213969,1764816640661,-500.0,0.0001699,2]
[396213970,1764816640673,-500.0,0.0001699,2]
[396213971,1764816640684,-500.0,0.0001699,2]
[396213972,1764816640694,-295.13682797,0.0001699,2]
[396213973,1764816640703,-151.0,0.0001699,2]
[396213974,1764816640714,-151.0,0.0001699,2]
[396213975,1764816640723,-151.0,0.0001699,2]
[396213976,1764816640733,-151.0,0.0001699,2]
[396213977,1764816640742,-151.0,0.0001699,2]
[396213978,1764816640752,-151.0,0.0001699,2]
[396213979,1764816640761,-151.0,0.0001699,2]
[396213980,1764816640770,-151.0,0.0001699,2]
[396213981,1764816640779,-194.66598122,0.0001699,2]
[396213982,1764816640788,-508.13327839,0.00016999,2]
[396213983,1764816640797,-500.0,0.00016999,2]
[396213984,1764816640806,-500.0,0.00016999,2]
[396213985,1764816640816,-510.4847934,0.00016999,2]
[396213986,1764816640825,-510.22691486,0.00016999,2]
[396213987,1764816640835,-158.47113769,0.00016999,2]
[396213988,1764816640844,-465.32212446,0.00016999,2]
[396213989,1764816640855,-2797605.00555965,0.00017,2]
[396213996,1764816644404,-6904.52662757,0.00016801,2]
[396213997,1764816644413,-19076.78944352,0.00017,2]
[396213998,1764816644560,-302.05042645,0.00017,2]
[396214000,1764816646284,-7713.14573541,0.00017,2]
[396214001,1764816646443,-15193.26859127,0.00017,2]
[396214002,1764816646455,-1008.24074895,0.00017,2]
[396214008,1764816883420,888.0,0.00025,120]
[396214049,1764817837470,-150.0,0.00016684,2]
[396214050,1764817837480,-290.0,0.00016684,2]
[396214051,1764817837491,-200.0,0.00016706,2]
[396214052,1764817837501,-500.0,0.000168,2]
[396214053,1764817837511,-445.2825337,0.000168,2]
[396214054,1764817837525,-1000.0,0.00016801,2]
[396214055,1764817837535,-6214.07396484,0.000169,2]
[396214056,1764817837545,-500.0,0.00016973,2]
[396214057,1764817837555,-581.3686148,0.00016973,2]
[396214058,1764817837566,-500.0,0.00016973,2]
[396214059,1764817837576,-500.0,0.00016973,2]
[396214060,1764817837586,-214.23916129,0.00016973,2]
[396214061,1764817837595,-500.0,0.00016973,2]
[396214062,1764817837605,-500.0,0.00016973,2]
[396214063,1764817837615,-287.04481097,0.00016973,2]
[396214064,1764817837627,-435.0150005,0.00016973,2]
[396214065,1764817837660,-141.14018853,0.00016973,2]
[396214066,1764817837670,-130.46129317,0.00016979,2]
[396214075,1764817839421,-561.69782174,0.00016979,2]
[396214076,1764817839433,-690.0,0.00016979,2]
[396214077,1764817839482,-1054.69611279,0.00016979,2]
[396214078,1764817839494,-815.76218516,0.00016979,2]
[396214079,1764817839506,-1237.77890015,0.00016979,2]
[396214080,1764817839589,-2103.40603584,0.00016979,2]
[396214081,1764817839643,-1087.8115798,0.00016979,2]
[396214082,1764817839697,-2859.88288406,0.00016979,2]
[396214083,1764817839753,-13594.05691499,0.00016979,2]
[396214084,1764817839763,-256.0942596,0.00016979,2]
[396214085,1764817839773,-325.72548713,0.00016999,2]
[396214086,1764817839783,-500.0,0.00016999,2]
[396214087,1764817839793,-152.29495754,0.00016999,2]
[396214088,1764817839806,-98879.33806401,0.00017,2]
[396214090,1764817839818,-46565.92232909,0.00017,2]
[396214104,1764817842571,-186.681,0.00016701,2]
[396214105,1764817842581,-4360.319,0.00017,2]
[396214106,1764817842756,-841.32099207,0.00017,2]
[396214107,1764817842812,-333.44283979,0.00017,2]
[396214112,1764817845604,-2017.57084873,0.00017,2]
[396214115,1764817862111,-179.67533853,0.00013699,2]
[396214116,1764817863629,-192.64356251,0.00013699,2]
[396214117,1764817882282,180.38943589,0.00025,120]
[396214143,1764819031510,-163.85109896,0.00013699,2]
[396214145,1764819031520,-263.0,0.00013699,2]
[396214146,1764819031530,-388.63637846,0.00015068,2]
[396214147,1764819031540,-166.66,0.00015151,2]
[396214148,1764819031551,-250.41409853,0.00015217,2]
[396214149,1764819031562,-166.66,0.0001547,2]
[396214150,1764819031571,-166.66,0.00015789,2]
[396214151,1764819031580,-501.28345585,0.00015873,2]
[396214152,1764819031590,-166.66,0.00016108,2]
[396214153,1764819031599,-1600.0,0.00016274,2]
[396214154,1764819031609,-166.66,0.00016427,2]
[396214155,1764819031618,-1000.0,0.0001673,2]
[396214156,1764819031628,-166.66,0.00016746,2]
[396214157,1764819031637,-1200.0,0.00016799,2]
[396214158,1764819031646,-1113.57847505,0.000168,2]
[396214159,1764819031658,-294.6458928,0.000168,2]
[396214160,1764819031670,-25155.11467496,0.000168,2]
[396214161,1764819031689,-999.0,0.000168,2]
[396214162,1764819031708,-10744.28529361,0.000168,2]
[396214163,1764819031719,-315.58304838,0.000168,2]
[396214164,1764819031732,-684.40695162,0.000168,2]
[396214168,1764819037672,-1394.57353863,0.000168,2]
[396214169,1764819037682,-0.70825305,0.00016816,2]
[396214170,1764819037695,-748.5477111,0.00016816,2]
[396214184,1764819039623,-364.32251082,0.00016816,2]
[396214186,1764819039634,-166.68,0.00016821,2]
[396214187,1764819039644,-1113.57847497,0.00016831,2]
[396214189,1764819039658,-1113.57847497,0.00016847,2]
[396214191,1764819039668,-1113.57847497,0.00016863,2]
[396214192,1764819039678,-1113.57847497,0.00016878,2]
[396214194,1764819039688,-480.06109419,0.00016886,2]
[396214196,1764819039698,-1113.57847497,0.00016894,2]
[396214197,1764819039708,-613.13469935,0.000169,2]
[396214199,1764819039718,-180.97491931,0.000169,2]
[396214201,1764819039728,-6087.19687466,0.000169,2]
[396214203,1764819039739,-247.49053325,0.000169,2]
[396214205,1764819039749,-203.49110058,0.000169,2]
[396214207,1764819039758,-6087.19687459,0.00016905,2]
[396214208,1764819039769,-5934.76096425,0.00016909,2]
[396214210,1764819039782,-152.43591034,0.00016909,2]
[396214212,1764819039791,-1113.57847497,0.0001691,2]
[396214213,1764819039800,-6087.19687459,0.00016914,2]
[396214215,1764819039806,-6087.19687459,0.00016918,2]
[396214217,1764819039813,-6087.19687459,0.00016923,2]
[396214218,1764819039821,-1113.57847497,0.00016925,2]
[396214220,1764819039830,-6087.19687459,0.00016927,2]
[396214221,1764819039837,-6087.19687459,0.00016932,2]
[396214223,1764819039845,-6087.19687459,0.00016936,2]
[396214225,1764819039853,-1113.57847497,0.00016941,2]
[396214227,1764819039861,-6087.19687459,0.00016941,2]
[396214228,1764819039869,-500.0,0.00016973,2]
[396214230,1764819039879,-334.77414926,0.00016973,2]
[396214232,1764819039888,-500.0,0.00016973,2]
[396214233,1764819039898,-500.0,0.00016973,2]
[396214234,1764819039907,-151.0,0.0001699,2]
[396214235,1764819039917,-151.0,0.0001699,2]
[396214236,1764819039926,-194.66598122,0.0001699,2]
[396214237,1764819039936,-15669.78,0.0001699,2]
[396214238,1764819039945,-15669.78,0.0001699,2]
[396214239,1764819039956,-22288.7678009,0.00016999,2]
[396214240,1764819039968,-10078.75992589,0.00016999,2]
[396214241,1764819039988,-2022.64529575,0.00016999,2]
[396214242,1764819040000,-22492.28528746,0.00016999,2]
[396214243,1764819040010,-300.0,0.00016999,2]
[396214244,1764819040024,-228.00784099,0.00016999,2]
[396214245,1764819040034,-327405.63889232,0.00017,2]
[396214246,1764819040044,-151.0,0.00017,2]
[396214247,1764819040056,-250.0,0.00017,2]
[396214248,1764819040066,-151.0,0.00017,2]
[396214249,1764819040077,-2000.0,0.00017,2]
[396214250,1764819040088,-1186.9,0.00017,2]
[396214251,1764819040351,-2451732.28459687,0.00017,2]
[396214252,1764819040363,-214377.69795935,0.00017,2]
[396214253,1764819040374,-325.929999,0.00017,2]
[396214254,1764819040390,-290.65933611,0.00017,2]
[396214255,1764819040403,-500.0,0.00017,2]
[396214256,1764819040415,-547.42060492,0.00017,2]
[396214260,1764819042675,-196.06245681,0.000169,2]
[396214261,1764819042684,-20755.72176691,0.00017,2]
[396214262,1764819042886,-2469.02239873,0.00017,2]
[396214263,1764819042898,-628.28861067,0.00017,2]
[396214264,1764819042994,-883.59956996,0.00017,2]
[396214265,1764819043006,-1052.29421122,0.00017,2]
[396214267,1764819045672,-784.55170703,0.00017,2]
[396214268,1764819045778,-759.48108643,0.00017,2]
[396214277,1764819903136,170.82650222,0.0001201,2]
[396214287,1764820231741,-284.0,0.00016,2]
[396214288,1764820231752,-256.43999999,0.00016,2]
[396214289,1764820231769,-9667.48000001,0.00016,2]
[396214290,1764820231781,-872.4655015,0.00016042,3]
[396214291,1764820231793,-126.5344985,0.00016042,3]
[396214292,1764820231805,-198.65,0.000161,2]
[396214293,1764820231817,-1500.0,0.00016103,2]
[396214294,1764820231828,-151.0,0.00016149,2]
[396214295,1764820231838,-156.587,0.00016149,2]
[396214296,1764820231849,-162.380719,0.00016149,2]
[396214297,1764820231859,-133.99648806,0.00016149,2]
[396214298,1764820231888,-17.796661,0.00016149,2]
[396214299,1764820231899,-400.46970455,0.00016173,2]
[396214301,1764820231910,-1388.91954942,0.00016173,2]
[396214303,1764820231922,-173.17074603,0.00016173,2]
[396214305,1764820231932,-311.1,0.00016173,2]
[396214307,1764820231942,-584.91647084,0.00016278,2]
[396214308,1764820231952,-1028.34299803,0.00016278,2]
[396214310,1764820231976,-165.70700197,0.00016278,2]
[396214311,1764820231987,-666.6319329,0.00016438,2]
[396214312,1764820232001,-1605.89447669,0.00016438,2]
[396214314,1764820232014,-999.0,0.00016438,2]
[396214317,1764820232032,-871.0,0.00016438,2]
[396214327,1764820239761,-591.07359041,0.00016438,2]
[396214328,1764820239771,-15344.191,0.00016709,2]
[396214329,1764820239782,-5336.8454,0.00016709,2]
[396214330,1764820239792,-55402.2206,0.00016709,2]
[396214331,1764820239802,-10642.6396,0.00016709,2]
[396214332,1764820239811,-405.6069537,0.00016799,2]
[396214333,1764820239821,-151.0,0.00016799,2]
[396214334,1764820239831,-300.0,0.00016799,2]
[396214335,1764820239841,-1950.0,0.00016799,2]
[396214336,1764820239851,-1843.27178046,0.00016799,2]
[396214337,1764820239860,-277.35679052,0.00016799,2]
[396214338,1764820239870,-501.0,0.00016822,2]
[396214339,1764820239879,-972.86,0.00016842,2]
[396214340,1764820239890,-408.49576767,0.0001689,2]
[396214341,1764820239900,-333.85051752,0.000169,2]
[396214342,1764820239910,-10000.0,0.000169,2]
[396214343,1764820239921,-162.8821936,0.000169,2]
[396214344,1764820239932,-408.75646624,0.000169,2]
[396214345,1764820239943,-294.4049528,0.000169,2]
[396214346,1764820239953,-180.97491931,0.000169,2]
[396214347,1764820239963,-164.71510757,0.00016973,2]
[396214348,1764820239973,-500.0,0.00016973,2]
[396214349,1764820239984,-500.0,0.00016973,2]
[396214350,1764820239993,-500.0,0.00016973,2]
[396214351,1764820240004,-500.0,0.00016973,2]
[396214352,1764820240015,-500.0,0.00016973,2]
[396214353,1764820240027,-500.0,0.00016973,2]
[396214354,1764820240037,-285.16846141,0.00016973,2]
[396214355,1764820240048,-649.32363297,0.00016973,2]
[396214356,1764820240061,-500.0,0.00016973,2]
[396214357,1764820240074,-500.0,0.00016989,2]
[396214358,1764820240083,-510.22691486,0.00016989,2]
[396214359,1764820240094,-1000.0,0.0001699,2]
[396214360,1764820240105,-1000.0,0.0001699,2]
[396214361,1764820240117,-4000.0,0.0001699,2]
[396214362,1764820240128,-1000.0,0.0001699,2]
[396214363,1764820240141,-500.0,0.0001699,2]
[396214364,1764820240150,-1000.0,0.0001699,2]
[396214365,1764820240161,-4000.0,0.0001699,2]
[396214366,1764820240172,-1000.0,0.0001699,2]
[396214367,1764820240183,-2000.0,0.0001699,2]
[396214368,1764820240195,-1000.0,0.0001699,2]
[396214369,1764820240207,-4000.0,0.0001699,2]
[396214370,1764820240217,-1000.0,0.0001699,2]
[396214371,1764820240227,-500.0,0.0001699,2]
[396214372,1764820240238,-2000.0,0.0001699,2]
[396214373,1764820240248,-1000.0,0.0001699,2]
[396214374,1764820240260,-4000.0,0.0001699,2]
[396214375,1764820240271,-1000.0,0.0001699,2]
[396214376,1764820240282,-500.0,0.0001699,2]
[396214377,1764820240291,-2000.0,0.0001699,2]
[396214378,1764820240301,-151.0,0.0001699,2]
[396214379,1764820240312,-1000.0,0.0001699,2]
[396214380,1764820240323,-4000.0,0.0001699,2]
[396214381,1764820240333,-2000.0,0.0001699,2]
[396214382,1764820240343,-1000.0,0.0001699,2]
[396214383,1764820240354,-4000.0,0.0001699,2]
[396214384,1764820240365,-1000.0,0.0001699,2]
[396214385,1764820240380,-500.0,0.0001699,2]
[396214386,1764820240392,-2000.0,0.0001699,2]
[396214387,1764820240403,-209.40437684,0.0001699,2]
[396214388,1764820240415,-397.54712625,0.0001699,2]
[396214389,1764820240426,-4000.0,0.0001699,2]
[396214390,1764820240437,-1000.0,0.0001699,2]
[396214391,1764820240449,-500.0,0.0001699,2]
[396214392,1764820240461,-2000.0,0.0001699,2]
[396214393,1764820240471,-4000.0,0.0001699,2]
[396214394,1764820240482,-1000.0,0.0001699,2]
[396214395,1764820240493,-500.0,0.0001699,2]
[396214396,1764820240504,-2000.0,0.0001699,2]
[396214397,1764820240515,-4000.0,0.0001699,2]
[396214398,1764820240526,-1000.0,0.0001699,2]
[396214399,1764820240536,-500.0,0.0001699,2]
[396214400,1764820240547,-2000.0,0.0001699,2]
[396214401,1764820240560,-1000.0,0.0001699,2]
[396214402,1764820240571,-4000.0,0.0001699,2]
[396214403,1764820240582,-1000.0,0.0001699,2]
[396214404,1764820240594,-500.0,0.0001699,2]
[396214405,1764820240605,-2000.0,0.0001699,2]
[396214406,1764820240617,-1000.0,0.0001699,2]
[396214407,1764820240629,-4068.27367881,0.0001699,2]
[396214408,1764820240925,-1000.0,0.0001699,2]
[396214409,1764820240942,-500.0,0.0001699,2]
[396214410,1764820240954,-2000.0,0.0001699,2]
[396214411,1764820240965,-1000.0,0.0001699,2]
[396214412,1764820240974,-500.0,0.0001699,2]
[396214413,1764820240983,-2000.0,0.0001699,2]
[396214414,1764820240993,-1000.0,0.0001699,2]
[396214415,1764820241002,-500.0,0.0001699,2]
[396214416,1764820241012,-1000.0,0.0001699,2]
[396214417,1764820241020,-1000.0,0.0001699,2]
[396214418,1764820241029,-1000.0,0.0001699,2]
[396214419,1764820241039,-574.12855637,0.0001699,2]